fUST/lending_fUST_20250611
["ID","MTS","AMOUNT","RATE_DAILY","PERIOD"]
[365334892,1749605439958,-460.0,0.00022462,4]
[365334893,1749605439968,-280.41,0.00022464,2]
[365334894,1749605439978,-1935.90556963,0.00022521,7]
[365334895,1749605439988,-460.0,0.00022521,4]
[365334896,1749605439999,-932.25,0.00022521,4]
[365334897,1749605440008,-1183.01,0.00022521,4]
[365334898,1749605440018,-973.3,0.00022521,4]
[365334899,1749605440027,-1935.90556963,0.00022624,7]
[365334901,1749605440036,-171.20918485,0.00022641,2]
[365334903,1749605440046,-25705.08025029,0.000227,2]
[365334905,1749605440055,-213.1263252,0.00022728,7]
[365334907,1749605440064,-842.5625,0.00022728,7]
[365334909,1749605440073,-1935.90556963,0.00022728,7]
[365334911,1749605440082,-1737.38,0.00022734,4]
[365334913,1749605440091,-1788.68,0.00022734,4]
[365334915,1749605440100,-790.05,0.00022734,4]
[365334916,1749605440110,-462.26,0.00022735,4]
[365334918,1749605440119,-460.0,0.00022735,4]
[365334920,1749605440128,-460.0,0.00022735,4]
[365334922,1749605440138,-460.0,0.00022735,4]
[365334924,1749605440148,-1970.74,0.00022735,4]
[365334926,1749605440158,-494.57,0.00022735,4]
[365334929,1749605440169,-887.66,0.00022735,4]
[365334931,1749605440179,-460.0,0.00022735,4]
[365334933,1749605440188,-793.82,0.00022735,4]
[365334934,1749605440198,-460.0,0.00022735,4]
[365334936,1749605440207,-1924.5,0.00022735,4]
[365334938,1749605440216,-460.0,0.00022735,4]
[365334940,1749605440226,-460.0,0.00022735,4]
[365334943,1749605440235,-795.89,0.00022735,4]
[365334945,1749605440244,-460.0,0.00022735,4]
[365334947,1749605440254,-824.32,0.00022735,4]
[365334949,1749605440263,-460.0,0.00022735,4]
[365334951,1749605440272,-460.0,0.00022736,4]
[365334953,1749605440281,-151.0,0.00022739,7]
[365334954,1749605440291,-834.9046531,0.00022785,2]
[365334956,1749605440300,-842.5625,0.00022785,2]
[365334958,1749605440309,-160.0,0.00022785,2]
[365334960,1749605440318,-160.0,0.00022785,2]
[365334962,1749605440327,-424.12530924,0.00022785,2]
[365334964,1749605440336,-160.0,0.00022785,2]
[365334966,1749605440345,-229.6792923,0.00022785,2]
[365334968,1749605440355,-213.1263252,0.00022785,2]
[365334970,1749605440364,-160.0,0.00022785,2]
[365334972,1749605440374,-160.0,0.00022785,2]
[365334974,1749605440383,-160.0,0.00022785,2]
[365334976,1749605440392,-160.0,0.00022785,2]
[365334978,1749605440403,-160.0,0.00022785,2]
[365334980,1749605440414,-460.0,0.00022795,4]
[365334982,1749605440423,-932.25,0.00022795,4]
[365334984,1749605440432,-1183.01,0.00022795,4]
[365334986,1749605440441,-973.3,0.00022795,4]
[365334988,1749605440450,-1935.90556963,0.00022831,8]
[365334990,1749605440460,-1935.90556963,0.00022934,8]
[365334992,1749605440468,-600.0,0.00022973,2]
[365334994,1749605440478,-500.0,0.00022973,2]
[365334996,1749605440487,-500.0,0.00022998,2]
[365334998,1749605440496,-2622.8388683,0.00022998,2]
[365335000,1749605440507,-2622.8388683,0.00022998,2]
[365335002,1749605440521,-500.0,0.00022998,2]
[365335004,1749605440530,-2622.8388683,0.00022998,2]
[365335006,1749605440540,-500.0,0.00022998,2]
[365335008,1749605440550,-2622.8388683,0.00022998,2]
[365335010,1749605440559,-2622.8388683,0.00022998,2]
[365335012,1749605440568,-2622.8388683,0.00022998,2]
[365335014,1749605440578,-2622.8388683,0.00022998,2]
[365335016,1749605440587,-2622.8388683,0.00022998,2]
[365335018,1749605440596,-552.15183472,0.00022998,2]
[365335020,1749605440605,-2622.8388683,0.00022998,2]
[365335022,1749605440614,-2622.8388683,0.00022998,2]
[365335024,1749605440623,-2622.8388683,0.00022998,2]
[365335026,1749605440633,-2622.8388683,0.00022998,2]
[365335028,1749605440642,-2622.8388683,0.00022998,2]
[365335030,1749605440651,-2622.8388683,0.00022998,2]
[365335032,1749605440662,-2622.8388683,0.00022998,2]
[365335034,1749605440671,-2622.8388683,0.00022998,2]
[365335036,1749605440680,-2622.8388683,0.00022998,2]
[365335038,1749605440689,-2622.8388683,0.00022998,2]
[365335040,1749605440698,-2622.8388683,0.00022998,2]
[365335042,1749605440707,-2622.8388683,0.00022998,2]
[365335044,1749605440716,-200000.0,0.00022999,7]
[365335046,1749605440726,-67340.87896581,0.00023,2]
[365335048,1749605440735,-623.95390499,0.00023,2]
[365335050,1749605440745,-40250.40311335,0.00023,2]
[365335052,1749605440758,-10034.71672052,0.00023,2]
[365335054,1749605440767,-1328.46293656,0.00023,2]
[365335056,1749605440777,-12968.98942987,0.00023,2]
[365335058,1749605440786,-1737.38,0.00023008,4]
[365335060,1749605440795,-1788.68,0.00023008,4]
[365335062,1749605440805,-790.05,0.00023008,4]
[365335064,1749605440814,-462.26,0.00023009,4]
[365335066,1749605440824,-460.0,0.00023009,4]
[365335068,1749605440833,-187.61883553,0.00023009,4]
[365335070,1749605440843,-460.0,0.00023009,4]
[365335072,1749605440852,-1970.74,0.00023009,4]
[365335074,1749605440862,-494.57,0.00023009,4]
[365335076,1749605440871,-887.66,0.00023009,4]
[365335078,1749605440880,-460.0,0.00023009,4]
[365335080,1749605440890,-793.82,0.00023009,4]
[365335082,1749605440900,-460.0,0.00023009,4]
[365335084,1749605440911,-1924.5,0.00023009,4]
[365335086,1749605440922,-460.0,0.00023009,4]
[365335088,1749605440933,-460.0,0.00023009,4]
[365335089,1749605440943,-795.89,0.00023009,4]
[365335090,1749605440952,-460.0,0.00023009,4]
[365335091,1749605440961,-824.32,0.00023009,4]
[365335092,1749605440971,-460.0,0.00023009,4]
[365335093,1749605440980,-460.0,0.0002301,4]
[365335094,1749605440990,-364.9974737,0.00023014,2]
[365335095,1749605441000,-1935.90556963,0.00023038,8]
[365335096,1749605441010,-364.9974737,0.00023041,2]
[365335097,1749605441019,-371.4448897,0.00023041,2]
[365335098,1749605441029,-460.0,0.00023069,4]
[365335099,1749605441038,-932.25,0.00023069,4]
[365335100,1749605441047,-1183.01,0.00023069,4]
[365335101,1749605441057,-973.3,0.00023069,4]
[365335102,1749605441066,-606.74,0.000231,7]
[365335103,1749605441076,-1935.90556963,0.00023141,8]
[365335104,1749605441085,-151.0,0.00023204,7]
[365335114,1749605441202,-5000.0,0.00023204,2]
[365335116,1749605441212,-207.4,0.00023204,2]
[365335119,1749605441221,-841.10451232,0.00023204,2]
[365335121,1749605441231,-420.0,0.00023231,2]
[365335123,1749605441240,-1935.90556963,0.00023245,8]
[365335125,1749605441250,-600.0,0.00023256,2]
[365335127,1749605441259,-1737.38,0.00023282,4]
[365335129,1749605441269,-1788.68,0.00023282,4]
[365335131,1749605441278,-790.05,0.00023282,4]
[365335133,1749605441287,-462.26,0.00023283,4]
[365335134,1749605441297,-460.0,0.00023283,4]
[365335137,1749605441307,-460.0,0.00023283,4]
[365335139,1749605441316,-1970.74,0.00023283,4]
[365335140,1749605441325,-494.57,0.00023283,4]
[365335143,1749605441334,-887.66,0.00023283,4]
[365335145,1749605441344,-460.0,0.00023283,4]
[365335147,1749605441354,-793.82,0.00023283,4]
[365335149,1749605441363,-460.0,0.00023283,4]
[365335151,1749605441373,-1924.5,0.00023283,4]
[365335153,1749605441382,-460.0,0.00023283,4]
[365335155,1749605441391,-460.0,0.00023283,4]
[365335157,1749605441401,-795.89,0.00023283,4]
[365335159,1749605441412,-460.0,0.00023283,4]
[365335161,1749605441421,-824.32,0.00023283,4]
[365335163,1749605441430,-460.0,0.00023283,4]
[365335165,1749605441439,-460.0,0.00023284,4]
[365335167,1749605441449,-1928.7,0.0002334,2]
[365335169,1749605441458,-460.0,0.00023343,4]
[365335171,1749605441467,-932.25,0.00023343,4]
[365335173,1749605441477,-1183.01,0.00023343,4]
[365335175,1749605441486,-973.3,0.00023343,4]
[365335177,1749605441496,-1935.90556963,0.00023348,9]
[365335179,1749605441504,-1935.90556963,0.00023452,9]
[365335181,1749605441514,-160.0,0.000235,3]
[365335183,1749605441523,-1200.0,0.00023521,2]
[365335185,1749605441533,-1000.0,0.00023521,2]
[365335187,1749605441542,-1935.90556963,0.00023555,9]
[365335189,1749605441551,-1737.38,0.00023556,4]
[365335191,1749605441560,-1788.68,0.00023556,4]
[365335193,1749605441570,-790.05,0.00023556,4]
[365335194,1749605441579,-462.26,0.00023557,4]
[365335196,1749605441588,-460.0,0.00023557,4]
[365335199,1749605441598,-460.0,0.00023557,4]
[365335201,1749605441607,-1970.74,0.00023557,4]
[365335203,1749605441616,-494.57,0.00023557,4]
[365335204,1749605441626,-887.66,0.00023557,4]
[365335206,1749605441635,-460.0,0.00023557,4]
[365335208,1749605441645,-793.82,0.00023557,4]
[365335210,1749605441655,-460.0,0.00023557,4]
[365335212,1749605441666,-1924.5,0.00023557,4]
[365335214,1749605441680,-460.0,0.00023557,4]
[365335216,1749605441689,-460.0,0.00023557,4]
[365335219,1749605441699,-795.89,0.00023557,4]
[365335221,1749605441708,-460.0,0.00023557,4]
[365335223,1749605441719,-824.32,0.00023557,4]
[365335225,1749605441728,-381.69315011,0.00023557,4]
[365335227,1749605441737,-460.0,0.00023558,4]
[365335229,1749605441748,-5427.0,0.00023613,7]
[365335231,1749605441757,-460.0,0.00023617,4]
[365335233,1749605441766,-932.25,0.00023617,4]
[365335235,1749605441775,-1183.01,0.00023617,4]
[365335237,1749605441785,-973.3,0.00023617,4]
[365335239,1749605441795,-1935.90556963,0.00023659,9]
[365335241,1749605441805,-5000.0,0.00023752,2]
[365335243,1749605441814,-1935.90556963,0.00023762,9]
[365335245,1749605441824,-200.0,0.0002378,2]
[365335247,1749605441834,-1000.0,0.000238,7]
[365335249,1749605441844,-54211.07379565,0.000238,3]
[365335251,1749605441853,-424.12530924,0.000238,3]
[365335253,1749605441863,-1737.38,0.0002383,4]
[365335255,1749605441873,-1788.68,0.0002383,4]
[365335257,1749605441883,-790.05,0.0002383,4]
[365335259,1749605441891,-462.26,0.00023831,4]
[365335261,1749605441901,-460.0,0.00023831,4]
[365335263,1749605441911,-460.0,0.00023831,4]
[365335265,1749605441922,-1970.74,0.00023831,4]
[365335267,1749605441933,-494.57,0.00023831,4]
[365335269,1749605441944,-887.66,0.00023831,4]
[365335271,1749605441954,-460.0,0.00023831,4]
[365335273,1749605441963,-793.82,0.00023831,4]
[365335275,1749605441972,-460.0,0.00023831,4]
[365335277,1749605441981,-1924.5,0.00023831,4]
[365335279,1749605441989,-460.0,0.00023831,4]
[365335280,1749605441999,-460.0,0.00023831,4]
[365335282,1749605442008,-795.89,0.00023831,4]
[365335284,1749605442018,-460.0,0.00023831,4]
[365335286,1749605442029,-824.32,0.00023831,4]
[365335288,1749605442039,-460.0,0.00023832,4]
[365335290,1749605442048,-280.41,0.00023834,2]
[365335293,1749605442058,-1935.90556963,0.00023866,10]
[365335295,1749605442067,-460.0,0.00023891,4]
[365335296,1749605442077,-932.25,0.00023891,4]
[365335298,1749605442086,-1183.01,0.00023891,4]
[365335301,1749605442096,-973.3,0.00023891,4]
[365335303,1749605442105,-1935.90556963,0.00023969,10]
[365335305,1749605442115,-160.0,0.00024,7]
[365335307,1749605442124,-364.9974737,0.00024,2]
[365335309,1749605442133,-364.9974737,0.00024,2]
[365335311,1749605442143,-364.9974737,0.00024,2]
[365335313,1749605442152,-364.9974737,0.00024,2]
[365335315,1749605442161,-1002.569127,0.00024,2]
[365335317,1749605442171,-834.9046531,0.00024,7]
[365335319,1749605442181,-160.0,0.00024,7]
[365335321,1749605442190,-160.0,0.00024,7]
[365335323,1749605442199,-229.6792923,0.00024,7]
[365335325,1749605442209,-424.12530924,0.00024,7]
[365335327,1749605442218,-1179.235199,0.00024009,3]
[365335329,1749605442227,-162.70720017,0.00024027,2]
[365335331,1749605442237,-1200.0,0.00024068,2]
[365335333,1749605442246,-1500.0,0.00024068,2]
[365335335,1749605442256,-1935.90556963,0.00024072,10]
[365335337,1749605442265,-151.0,0.000241,5]
[365335339,1749605442274,-1737.38,0.00024104,4]
[365335341,1749605442283,-1788.68,0.00024104,4]
[365335343,1749605442292,-790.05,0.00024104,4]
[365335345,1749605442301,-462.26,0.00024105,4]
[365335347,1749605442310,-460.0,0.00024105,4]
[365335349,1749605442319,-460.0,0.00024105,4]
[365335351,1749605442329,-1970.74,0.00024105,4]
[365335353,1749605442338,-494.57,0.00024105,4]
[365335355,1749605442347,-887.66,0.00024105,4]
[365335357,1749605442356,-460.0,0.00024105,4]
[365335359,1749605442366,-793.82,0.00024105,4]
[365335361,1749605442375,-460.0,0.00024105,4]
[365335363,1749605442384,-1924.5,0.00024105,4]
[365335365,1749605442394,-460.0,0.00024105,4]
[365335367,1749605442403,-471.81778256,0.00024105,4]
[365335369,1749605442412,-795.89,0.00024105,4]
[365335371,1749605442421,-581.21,0.00024105,4]
[365335373,1749605442431,-824.32,0.00024105,4]
[365335375,1749605442440,-460.0,0.00024106,4]
[365335377,1749605442449,-6670.60497678,0.0002411,3]
[365335379,1749605442458,-12226.03714847,0.0002411,3]
[365335386,1749605442512,-729.69,0.00021639,4]
[365335388,1749605442521,-729.69,0.00021913,4]
[365335390,1749605442530,-622.7158804,0.00022187,4]
[365335398,1749605442597,-106.9741196,0.00022187,4]
[365335400,1749605442606,-545.89467294,0.00022461,4]
[365335499,1749605443531,-183.79532706,0.00022461,4]
[365335501,1749605443541,-729.69,0.00022735,4]
[365335503,1749605443550,-729.69,0.00023009,4]
[365335505,1749605443560,-729.69,0.00023283,4]
[365335507,1749605443570,-729.69,0.00023557,4]
[365335509,1749605443580,-171.20918485,0.00023744,2]
[365335511,1749605443590,-605.53087164,0.00023831,4]
[365335513,1749605443601,-124.15912836,0.00023831,4]
[365335515,1749605443611,-729.69,0.00024105,4]
[365335517,1749605443621,-273.96285153,0.0002411,3]
[365335519,1749605443630,-160.0,0.0002411,3]
[365335521,1749605443640,-229.6792923,0.0002411,3]
[365335523,1749605443649,-2155.0,0.00024134,2]
[365335525,1749605443659,-1146.7080698,0.00024137,2]
[365335527,1749605443669,-460.0,0.00024165,4]
[365335529,1749605443679,-932.25,0.00024165,4]
[365335531,1749605443688,-1183.01,0.00024165,4]
[365335534,1749605443699,-973.3,0.00024165,4]
[365335536,1749605443708,-257.7952331,0.00024176,10]
[365335538,1749605443720,-500.0,0.00024176,10]
[365336471,1749605481818,183.76055,0.00024658,120]
[365336472,1749605488344,229.686976,0.00013699,2]
[365336482,1749605519075,1466.8790058,0.00024649,120]
[365336490,1749605790099,2231.23658894,0.00024657,120]
[365336498,1749606252969,1183.0,0.0002494,120]
[365336564,1749606527425,231.672854,0.00013699,2]
[365336565,1749606552158,322.16350476,0.0002494,60]
[365336576,1749606627510,2340.76,0.00024943,60]
[365336585,1749606632534,-313.73916419,0.00019,2]
[365336586,1749606632546,-390.6446209,0.00019,2]
[365336587,1749606632558,-282.15020561,0.00019,2]
[365336588,1749606632569,-8105.58989384,0.00019,2]
[365336618,1749606638448,-2383.96085645,0.00019,2]
[365336619,1749606638460,-15006.7749058,0.00019,2]
[365336620,1749606638471,-4073.68124325,0.00019,2]
[365336621,1749606638484,-343.61,0.00019699,2]
[365336622,1749606638493,-231.672854,0.00020187,2]
[365336623,1749606638503,-722.5687535,0.00020508,2]
[365336624,1749606638512,-687.23,0.00020637,2]
[365336625,1749606638521,-500.0,0.00021064,2]
[365336626,1749606638531,-300.0,0.00021424,2]
[365336627,1749606638540,-242.63472483,0.00021425,4]
[365336628,1749606638550,-496.55873645,0.00021425,2]
[365336629,1749606638559,-278.62598153,0.00021425,4]
[365336630,1749606638569,-159.19493693,0.00021425,4]
[365336631,1749606638578,-1030.84,0.00021575,2]
[365336632,1749606638587,-300.0,0.00021635,2]
[365336633,1749606638596,-169.0,0.00021635,2]
[365336634,1749606638605,-261.23870573,0.00021636,4]
[365336635,1749606638615,-504.68262708,0.00021636,4]
[365336636,1749606638625,-460.0,0.00021636,4]
[365336637,1749606638634,-703.44,0.00021636,4]
[365336638,1749606638643,-440.0,0.00021636,4]
[365336639,1749606638653,-460.0,0.00021636,4]
[365336641,1749606638663,-274.89876502,0.00021636,4]
[365336643,1749606638672,-915.3,0.00021636,4]
[365336645,1749606638682,-182.7210722,0.00021636,4]
[365336647,1749606638693,-965.47395621,0.00021636,4]
[365336649,1749606638705,-471.87497159,0.00021636,4]
[365336651,1749606638714,-529.28,0.00021636,4]
[365336653,1749606638723,-488.43738364,0.00021637,4]
[365336655,1749606638733,-167.66684056,0.00021637,4]
[365336657,1749606638742,-207.39647547,0.00021637,4]
[365336659,1749606638751,-1590.21,0.00021637,4]
[365336661,1749606638761,-605.87160611,0.00021637,4]
[365336663,1749606638770,-460.0,0.00021637,4]
[365336665,1749606638779,-460.0,0.00021637,4]
[365336667,1749606638788,-460.0,0.00021637,4]
[365336669,1749606638798,-496.51516928,0.00021637,4]
[365336671,1749606638807,-499.50754398,0.00021637,4]
[365336673,1749606638816,-460.0,0.00021637,4]
[365336675,1749606638825,-608.81,0.00021637,4]
[365336677,1749606638834,-460.0,0.00021637,4]
[365336679,1749606638843,-460.0,0.00021637,4]
[365336681,1749606638852,-153.7223671,0.00021637,4]
[365336683,1749606638861,-616.85,0.00021637,4]
[365336685,1749606638871,-460.0,0.00021637,4]
[365336688,1749606638881,-460.0,0.00021637,4]
[365336690,1749606638890,-85.41833053,0.00021637,4]
[365336692,1749606638902,-408.26231339,0.00021637,4]
[365336694,1749606638912,-451.70691959,0.00021637,4]
[365336696,1749606638921,-492.17213166,0.00021637,4]
[365336698,1749606638930,-501.97774592,0.00021637,4]
[365336700,1749606638942,-464.48327864,0.00021637,4]
[365336702,1749606638951,-460.0,0.00021637,4]
[365336703,1749606638960,-1193.80841086,0.00021637,4]
[365336706,1749606638972,-188.83158914,0.00021637,4]
[365336708,1749606638981,-495.56,0.00021637,4]
[365336710,1749606638991,-769.71,0.00021637,4]
[365336712,1749606639001,-460.0,0.00021637,4]
[365336714,1749606639010,-573.96446383,0.00021637,4]
[365336716,1749606639020,-338.95742078,0.00021637,4]
[365336718,1749606639031,-149.05072897,0.00021637,4]
[365336720,1749606639041,-460.0,0.00021637,4]
[365336722,1749606639050,-1352.26,0.00021637,4]
[365336724,1749606639059,-753.96580874,0.00021637,4]
[365336727,1749606639071,-800.77419126,0.00021637,4]
[365336729,1749606639081,-434.61757809,0.00021637,4]
[365336731,1749606639093,-25.38242191,0.00021637,4]
[365336733,1749606639102,-419.61708715,0.00021637,4]
[365336795,1749606643424,-40.38291285,0.00021637,4]
[365336797,1749606643434,-169.11229336,0.00021637,4]
[365336799,1749606643444,-745.36,0.00021637,4]
[365336802,1749606643453,-460.0,0.00021637,4]
[365336804,1749606643462,-460.0,0.00021637,4]
[365336805,1749606643472,-460.0,0.00021637,4]
[365336808,1749606643481,-684.2,0.00021637,4]
[365336810,1749606643491,-188.34778727,0.00021811,2]
[365336813,1749606643500,-867.51318061,0.000219,6]
[365336816,1749606643510,-1598.77185783,0.00021909,2]
[365336819,1749606643519,-1598.77185783,0.00021909,2]
[365336822,1749606643528,-1598.77185783,0.00021909,2]
[365336825,1749606643538,-1598.77185783,0.00021909,2]
[365336828,1749606643546,-1598.77185783,0.00021909,2]
[365336830,1749606643555,-1598.77185783,0.00021909,2]
[365336832,1749606643566,-1598.77185783,0.00021909,2]
[365336834,1749606643575,-1598.77185783,0.00021909,2]
[365336836,1749606643585,-1598.77185783,0.00021909,2]
[365336838,1749606643594,-1028.85667782,0.00021909,2]
[365337137,1749606646556,-1463.28177226,0.00021898,2]
[365338125,1749606717371,500.0,0.00024657,120]
[365338126,1749606794278,1000.0,0.00024658,120]
[365338127,1749606798112,1000.0,0.00024658,120]
[365338128,1749606801962,1000.0,0.00024658,120]
[365338130,1749606805954,1000.0,0.00024658,120]
[365338131,1749606810301,1000.0,0.00024658,120]
[365338133,1749606899003,42212.4473153,0.000233,120]
[365338137,1749607194058,1044.0,0.000246,120]
[365338146,1749607354516,4200.0,0.00018,2]
[365338148,1749607554655,226.088152,0.00013699,2]
[365338192,1749607683098,1000.0,0.00024658,120]
[365338193,1749607687022,1000.0,0.00024658,120]
[365338194,1749607691031,1000.0,0.00024658,120]
[365338195,1749607700903,1427.0000006,0.00024658,120]
[365338231,1749607832576,-349.09,0.00019722,2]
[365338232,1749607832587,-144.43358549,0.00019948,2]
[365338233,1749607832630,-36.58638101,0.00019948,2]
[365338234,1749607832640,-700.0,0.00019968,2]
[365338235,1749607832650,-226.088152,0.00020187,2]
[365338236,1749607832660,-188.78334,0.00020508,2]
[365338237,1749607832670,-698.19,0.00020661,2]
[365338238,1749607832681,-160.67539232,0.00020979,2]
[365338239,1749607832690,-165.89792811,0.00020989,2]
[365338240,1749607832700,-700.0,0.00021064,2]
[365338241,1749607832709,-500.0,0.00021073,2]
[365338242,1749607832719,-300.0,0.00021078,2]
[365338243,1749607832730,-300.0,0.00021079,2]
[365338244,1749607832739,-161.98,0.0002108,2]
[365338245,1749607832748,-180.14204191,0.0002108,2]
[365338246,1749607832762,-2562.53277524,0.00021088,2]
[365338247,1749607832772,-2562.53277524,0.00021088,2]
[365338248,1749607832782,-2562.53277524,0.00021088,2]
[365338249,1749607832791,-2562.53277524,0.00021088,2]
[365338250,1749607832801,-2562.53277524,0.00021088,2]
[365338251,1749607832810,-2562.53277524,0.00021088,2]
[365338252,1749607832820,-2562.53277524,0.00021088,2]
[365338253,1749607832829,-2562.53277524,0.00021088,2]
[365338254,1749607832839,-2562.53277524,0.00021088,2]
[365338255,1749607832849,-2562.53277524,0.00021088,2]
[365338256,1749607832858,-2562.53277524,0.00021088,2]
[365338257,1749607832868,-2562.53277524,0.00021088,2]
[365338258,1749607832878,-2562.53277524,0.00021088,2]
[365338259,1749607832887,-2562.53277524,0.00021088,2]
[365338260,1749607832897,-2562.53277524,0.00021088,2]
[365338261,1749607832906,-2562.53277524,0.00021088,2]
[365338262,1749607832915,-2562.53277524,0.00021088,2]
[365338263,1749607832926,-2562.53277524,0.00021088,2]
[365338264,1749607832937,-2562.53277524,0.00021088,2]
[365338265,1749607832947,-2562.53277524,0.00021088,2]
[365338266,1749607832956,-2562.53277524,0.00021088,2]
[365338267,1749607832966,-2562.53277524,0.00021088,2]
[365338268,1749607832976,-2562.53277524,0.00021088,2]
[365338269,1749607832984,-2562.53277524,0.00021088,2]
[365338270,1749607832993,-2562.53277524,0.00021088,2]
[365338271,1749607833002,-2562.53277524,0.00021088,2]
[365338272,1749607833012,-2562.53277524,0.00021088,2]
[365338273,1749607833023,-2562.53277524,0.00021088,2]
[365338274,1749607833033,-2562.53277524,0.00021088,2]
[365338275,1749607833043,-2562.53277524,0.00021088,2]
[365338276,1749607833053,-2562.53277524,0.00021088,2]
[365338277,1749607833063,-2562.53277524,0.00021088,2]
[365338278,1749607833074,-2562.53277524,0.00021088,2]
[365338279,1749607833084,-2562.53277524,0.00021088,2]
[365338280,1749607833094,-2562.53277524,0.00021088,2]
[365338281,1749607833106,-2562.53277524,0.00021088,2]
[365338282,1749607833116,-2562.53277524,0.00021088,2]
[365338283,1749607833126,-2562.53277524,0.00021088,2]
[365338284,1749607833136,-2562.53277524,0.00021088,2]
[365338285,1749607833146,-2562.53277524,0.00021088,2]
[365338286,1749607833156,-2562.53277524,0.00021088,2]
[365338287,1749607833167,-2562.53277524,0.00021088,2]
[365338288,1749607833178,-2562.53277524,0.00021088,2]
[365338289,1749607833190,-2562.53277524,0.00021088,2]
[365338290,1749607833200,-2562.53277524,0.00021088,2]
[365338291,1749607833209,-2562.53277524,0.00021088,2]
[365338292,1749607833219,-2562.53277524,0.00021088,2]
[365338293,1749607833229,-2562.53277524,0.00021088,2]
[365338294,1749607833239,-2562.53277524,0.00021088,2]
[365338295,1749607833249,-2562.53277524,0.00021088,2]
[365338296,1749607833258,-2562.53277524,0.00021088,2]
[365338297,1749607833267,-2562.53277524,0.00021088,2]
[365338298,1749607833277,-2562.53277524,0.00021088,2]
[365338299,1749607833287,-2562.53277524,0.00021088,2]
[365338300,1749607833297,-2562.53277524,0.00021088,2]
[365338301,1749607833307,-2562.53277524,0.00021088,2]
[365338302,1749607833316,-2562.53277524,0.00021088,2]
[365338303,1749607833325,-2562.53277524,0.00021088,2]
[365338304,1749607833335,-2536.9074475,0.00021088,2]
[365338305,1749607833345,-2536.9074475,0.00021088,2]
[365338306,1749607833354,-2536.9074475,0.00021088,2]
[365338307,1749607833364,-2536.9074475,0.00021088,2]
[365338308,1749607833373,-2536.9074475,0.00021088,2]
[365338309,1749607833384,-2536.9074475,0.00021088,2]
[365338310,1749607833392,-2536.9074475,0.00021088,2]
[365338311,1749607833402,-2536.9074475,0.00021088,2]
[365338312,1749607833412,-2536.9074475,0.00021088,2]
[365338313,1749607833421,-2536.9074475,0.00021088,2]
[365338314,1749607833431,-2536.9074475,0.00021088,2]
[365338315,1749607833440,-2536.9074475,0.00021088,2]
[365338316,1749607833450,-2536.9074475,0.00021088,2]
[365338317,1749607833459,-2536.9074475,0.00021088,2]
[365338318,1749607833469,-2536.9074475,0.00021088,2]
[365338319,1749607833478,-2536.9074475,0.00021088,2]
[365338320,1749607833488,-2536.9074475,0.00021088,2]
[365338321,1749607833498,-2536.9074475,0.00021088,2]
[365338322,1749607833507,-2536.9074475,0.00021088,2]
[365338323,1749607833517,-2536.9074475,0.00021088,2]
[365338324,1749607833527,-2536.9074475,0.00021088,2]
[365338325,1749607833536,-2536.9074475,0.00021088,2]
[365338326,1749607833546,-2536.9074475,0.00021088,2]
[365338327,1749607833556,-2536.9074475,0.00021088,2]
[365338328,1749607833565,-2536.9074475,0.00021088,2]
[365338329,1749607833574,-2536.9074475,0.00021088,2]
[365338330,1749607833583,-2536.9074475,0.00021088,2]
[365338331,1749607833594,-2536.9074475,0.00021088,2]
[365338332,1749607833604,-2536.9074475,0.00021088,2]
[365338333,1749607833615,-2536.90744739,0.00021088,2]
[365338334,1749607833624,-507.71282359,0.00021093,2]
[365338335,1749607833634,-306.62,0.00021093,2]
[365338336,1749607833644,-457.03104692,0.00021095,4]
[365338337,1749607833653,-467.62763219,0.00021095,4]
[365338338,1749607833665,-443.71458905,0.00021095,4]
[365338339,1749607833674,-464.60160541,0.00021095,4]